[Event "Israeli Team U18-ch 2022"]
[Site "Be'er Ya'akov"]
[Date "2022.08.16"]
[Round "7.10"]
[White "Shteiman, Yuval"]
[Black "Zemach, Nadav"]
[Result "1/2-1/2"]
[ECO "A13"]
[WhiteElo "2034"]
[BlackElo "2225"]
[Annotator "TA"]
[PlyCount "60"]
[EventDate "2022.08.14"]
[EventCountry "ISR"]
[SourceTitle "playchess.com"]
[Source "ChessBase"]
[SourceQuality "1"]
[TimeControl "3000+10"]

{[%evp 14,60,8,5,13,12,12,14,8,3,2,0,12,-19,-20,0,0,5,57,0,4,12,0,12,8,12,52,43,38,37,35,26,33,23,24,24,24,24,24,24,29,29,29,29,77,75,73,0,21]} 1. c4 {[%emt 0:00:03]} e6 {[%emt 0:00:05]} 2. g3 {[%emt 0:00:05]} d5 {[%emt 0:00:04]} 3. Bg2 {[%emt 0:00:03]} d4 {[%emt 0:00:04]} 4. Nf3 {[%emt 0:00:50]} c5 {[%emt 0:00:06]} 5. e3 {[%emt 0:00:24]} Nf6 {[%emt 0:00:07]} 6. O-O {[%emt 0:00:45]} Nc6 {[%emt 0:00:02]} 7. exd4 {[%emt 0:00:05]} cxd4 {[%emt 0:00:06]} 8. d3 {[%emt 0:00:07]} Bd6 {[%emt 0:00:07] A13: English Opening: 1...e6.} 9. a3 {[%emt 0:00:36]} a5 {[%emt 0:00:19]} 10. Bg5 {[%emt 0:00:05]} h6 {[%emt 0:00:52]} 11. Bxf6 {[%emt 0:00:06]} Qxf6 {[%emt 0:00:04]} 12. Nbd2 {[%emt 0:00:08][%cal Ob2b4]} Qe7 {[%emt 0:02:25]} 13. Qc2 {[%emt 0:02:12]} O-O {[%emt 0:01:00]} 14. Rac1 {[%emt 0:00:52]} e5 {[%emt 0:01:47]} 15. Rfe1 {[%emt 0:01:30] [#]} Qd8 $146 {[%emt 0:01:49]} ({Black should play} 15... Be6 $11) ({Predecessor:} 15... Bc5 16. Nxe5 Nxe5 17. f4 Nxd3 18. Qxd3 Qc7 19. Nb3 Be7 20. Nxd4 Bf6 21. Kh1 Qc5 {0-1 (58) Haldorsen,B (2458)-Arvola,B (2476) Oslo 2020}) 16. Rb1 {[%emt 0:04:52]} (16. c5 $14 Bc7 17. Nc4) 16... a4 $11 {[%emt 0:04:00]} 17. c5 {[%emt 0:03:18]} Bc7 {[%emt 0:00:10]} 18. Nc4 {[%emt 0:04:10] Prevents Ra5.} Re8 {[%emt 0:01:51]} 19. Nfd2 {[%emt 0:02:00]} f5 {[%emt 0:01:46] Against Ne4} 20. b4 {[%emt 0:04:59] [#] And now b5 would win.} axb3 $1 {[%emt 0:00:51]} 21. Qxb3 {[%emt 0:00:08] Black must now prevent Nxe5+.} Kh8 {[%emt 0:00:46]} 22. Qb5 {[%emt 0:02:44]} Ra6 {[%emt 0:07:16]} 23. Nd6 {[%emt 0:07:20]} Bxd6 {[%emt 0:00:49]} 24. cxd6 {[%emt 0:00:05]} Qxd6 {[%emt 0:02:42]} 25. Nc4 $36 {[%emt 0:00:10][%mdl 2048] Black is under pressure.} Qc7 {[%emt 0:09:35]} 26. Bxc6 {[%emt 0:02:29]} bxc6 {[%emt 0:01:18]} 27. Qb8 {[%emt 0:00:19]} Qxb8 {[%emt 0:03:03]} 28. Rxb8 {[%emt 0:00:06] Strongly threatening Nd6.} Bd7 {[%emt 0:00:04] [#]} (28... Rg8 $11) 29. Rb7 $1 $16 {[%emt 0:01:57][%mdl 1024] White has strong compensation.} Bc8 {[%emt 0:00:30]} 30. Rb8 {[%emt 0:00:18] White is more active.} (30. Rc7 $16 {Threatens to win with Nd6.} Ra8 31. Rxe5 Rxe5 32. Nxe5) 30... Bd7 {[%emt 0:00:23] Weighted Error Value: White=0.13 (very precise) /Black=0.11 (very precise)} ({Don't play} 30... e4 31. Nd6 Rg8 32. Nxc8 $14 (32. Rxc8 Rxc8 33. Nxc8 exd3 $16)) 1/2-1/2

[Event "Israeli Team U18-ch 2022"]
[Site "Be'er Ya'akov"]
[Date "2022.08.16"]
[Round "7.11"]
[White "Vagman, Roy"]
[Black "Friedland, Eldar"]
[Result "1/2-1/2"]
[ECO "B38"]
[WhiteElo "2180"]
[BlackElo "1990"]
[Annotator "TA"]
[PlyCount "153"]
[EventDate "2022.08.14"]
[EventCountry "ISR"]
[SourceTitle "playchess.com"]
[Source "ChessBase"]
[SourceQuality "1"]
[TimeControl "3000+10"]

{[%evp 21,153,31,37,33,62,54,50,50,58,35,44,37,51,46,54,58,61,52,80,44,33,14,12,16,17,9,7,0,0,-12,-9,-27,-28,-38,-27,-115,-109,-145,-106,-118,-113,-141,-82,-76,-20,-18,-19,-19,0,0,0,0,0,0,0,0,6,0,6,6,6,6,7,0,7,0,7,0,7,0,7,0,7,0,0,0,0,-8,-8,-8,-8,-10,0,0,0,0,7,7,7,7,7,7,7,7,7,7,7,7,7,7,7,7,7,7,7,7,7,7,7,7,7,7,7,7,7,0,7,0,7,7,7,7,7,7,7,8,8,8,8,8,12,12,12,0]} 1. e4 {[%emt 0:50:20]} c5 {[%emt 0:00:12]} 2. Nf3 {[%emt 0:00:00]} g6 {[%emt 0:00:07]} 3. c4 {[%emt 0:00:00]} Bg7 {[%emt 0:00:18]} 4. d4 {[%emt 0:00:00]} cxd4 {[%emt 0:00:07]} 5. Nxd4 {[%emt 0:00:00]} Nc6 {[%emt 0:00:11]} 6. Be3 {[%emt 0:00:00]} Nf6 {[%emt 0:00:10]} 7. Nc3 {[%emt 0:00:00]} O-O {[%emt 0:00:11]} 8. Be2 {[%emt 0:00:00]} d6 {[%emt 0:00:24]} 9. O-O {[%emt 0:00:00]} Bd7 {[%emt 0:00:21]} 10. h3 {[%emt 0:00:00]} Nxd4 {[%emt 0:00:41]} 11. Bxd4 {[%emt 0:00:00]} Bc6 {[%emt 0:00:18]} 12. Qc2 {[%emt 0:00:00] B38: Sicilian: Maroczy Bind with 5...Bg7 and 7...0-0.} Nd7 {[%emt 0:01:53]} 13. Bxg7 {[%emt 0:00:00] White is more active.} Kxg7 {[%emt 0:00:09]} 14. b4 {[%emt 0:00:00] [#] And now b5 would win. White is slightly better.} b6 {[%emt 0:01:24]} 15. Qb2 {[%emt 0:00:00]} Kg8 {[%emt 0:00:47]} 16. Rad1 {[%emt 0:00:00]} a5 {[%emt 0:04:14]} 17. a3 {[%emt 0:00:00]} Qc7 {[%emt 0:01:11]} 18. f4 {[%emt 0:00:00]} axb4 {[%emt 0:03:51]} 19. axb4 {[%emt 0:00:00]} Qa7 {[%emt 0:00:32]} 20. Ra1 {[%emt 0:00:00] [#] Against Qa3} Qb7 $146 {[%emt 0:01:46]} ({Predecessor:} 20... Qc7 21. Bd3 Nf6 22. Rae1 Nd7 23. Rf2 e6 24. Bf1 Rfd8 25. Rd2 Nf6 26. Bd3 Nh5 {1-0 (53) Warmerdam,M (2506)-Mhango,B (2117) Chess.com INT 2020}) 21. Bd3 {[%emt 0:00:00]} Rxa1 {[%emt 0:05:10]} 22. Rxa1 {[%emt 0:00:00]} Ra8 {[%emt 0:07:07]} 23. Re1 {[%emt 0:00:00] [#] b5 is the strong threat.} Qa7 {[%emt 0:01:11]} 24. Nd5 {[%emt 0:00:00]} Bxd5 {[%emt 0:03:46]} 25. cxd5 {[%emt 0:00:00]} (25. exd5 $5 {[%cal Re1e7]} b5+ 26. Kh2 $11) 25... Qa2 {[%emt 0:02:35]} 26. Qxa2 {[%emt 0:00:00]} (26. Re2 $5 {[%cal Rb2a2]} Qa1+ 27. Qxa1 Rxa1+ 28. Kf2 $11) 26... Rxa2 $11 {[%emt 0:00:05][%mdl 4096] Endgame KRB-KRN} 27. Re2 {[%emt 0:00:00] Prevents Rb2.} Ra3 {[%emt 0:00:55]} 28. Bc2 {[%emt 0:00:00]} (28. Rd2 $11) 28... Nf6 $17 {[%emt 0:02:00]} 29. Kh2 {[%emt 0:00:34]} Nh5 {[%emt 0:02:47]} 30. Rf2 {[%emt 0:00:01]} Ra2 {[%emt 0:00:32][%cal Oh5f4]} 31. g3 {[%emt 0:00:39]} Kg7 {[%emt 0:01:02]} (31... Nf6 $142 {Threatens to win with ...Nxe4.} 32. Kg2 Rb2) 32. e5 {[%emt 0:01:31]} f6 {[%emt 0:00:52]} (32... b5 $17) 33. exd6 $11 {[%emt 0:00:29] The position is equal.} exd6 {[%emt 0:00:04]} 34. Kg2 {[%emt 0:00:06]} f5 {[%emt 0:02:06]} 35. Bd1 {[%emt 0:00:23]} Rxf2+ {[%emt 0:04:05]} 36. Kxf2 {[%emt 0:00:02] KB-KN} Nf6 {[%emt 0:00:04]} 37. Bf3 {[%emt 0:00:01]} Kf7 {[%emt 0:01:02]} 38. Ke3 {[%emt 0:00:01]} Ke7 {[%emt 0:00:08]} 39. Kd4 {[%emt 0:00:00]} Kd7 {[%emt 0:00:39]} 40. g4 {[%emt 0:00:01]} fxg4 {[%emt 0:01:34]} 41. hxg4 {[%emt 0:00:02]} h6 {[%emt 0:00:12]} 42. Kc4 {[%emt 0:00:23]} Kc7 {[%emt 0:00:02]} 43. Kd4 {[%emt 0:00:24]} Kd7 {[%emt 0:00:01]} 44. Be2 {[%emt 0:00:05]} Kc7 {[%emt 0:00:23]} 45. Bf3 {[%emt 0:00:40]} Kd7 {[%emt 0:00:01]} 46. Ke3 {[%emt 0:00:01]} Ke7 {[%emt 0:00:14]} 47. Kf2 {[%emt 0:00:30]} Kf7 {[%emt 0:00:13]} 48. Kg3 {[%emt 0:00:12]} Kg7 {[%emt 0:00:17]} 49. Kh4 {[%emt 0:00:18]} Ne8 {[%emt 0:00:12]} 50. Be2 {[%emt 0:00:57]} Nc7 {[%emt 0:00:00]} 51. Bc4 {[%emt 0:00:28]} Kf6 {[%emt 0:00:02]} 52. b5 {[%emt 0:00:19]} Ne8 {[%emt 0:00:12]} 53. g5+ $1 {[%emt 0:00:19]} hxg5+ 54. fxg5+ {[%emt 0:00:01]} Kf7 {[%emt 0:00:32]} 55. Kg4 {[%emt 0:00:06]} Ng7 {[%emt 0:00:06]} 56. Bd3 {[%emt 0:00:06]} Ne8 {[%emt 0:00:04]} 57. Kf4 {[%emt 0:00:14]} Kg7 {[%emt 0:00:10]} 58. Ke4 {[%emt 0:00:07]} Kf7 {[%emt 0:00:04]} 59. Kd4 {[%emt 0:00:01]} Ng7 {[%emt 0:00:07]} 60. Be4 {[%emt 0:00:04]} Nh5 {[%emt 0:00:08] White must now prevent ...Nf4.} 61. Bf3 {[%emt 0:00:06]} Ng7 {[%emt 0:00:12]} 62. Bg4 {[%emt 0:00:01]} Ke7 {[%emt 0:00:06]} 63. Ke4 {[%emt 0:00:02]} Kf7 {[%emt 0:00:08]} 64. Bd7 {[%emt 0:00:10]} Ke7 {[%emt 0:00:07]} 65. Bh3 {[%emt 0:00:08]} Ne8 {[%emt 0:00:07]} 66. Kd4 {[%emt 0:00:18]} Nc7 {[%emt 0:00:11]} 67. Bf1 {[%emt 0:00:00]} Ne8 {[%emt 0:00:03]} 68. Bh3 {[%emt 0:00:17]} Nc7 {[%emt 0:00:15]} 69. Bf1 {[%emt 0:00:13]} Ne8 {[%emt 0:00:03]} 70. Bd3 {[%emt 0:00:01]} Kf7 {[%emt 0:00:01]} 71. Ke4 {[%emt 0:00:12]} Ng7 {[%emt 0:00:05]} 72. Kf4 {[%emt 0:00:02]} Ne8 {[%emt 0:00:09]} 73. Kf3 {[%emt 0:00:15]} Nc7 {[%emt 0:00:15]} 74. Bf1 {[%emt 0:00:01]} Kg7 {[%emt 0:00:18]} 75. Ke4 {[%emt 0:00:06]} Kf7 {[%emt 0:00:06]} 76. Kd4 {[%emt 0:00:58]} Kg7 {[%emt 0:00:08]} 77. Ke4 {[%emt 0:00:24] Weighted Error Value: White=0.10 (very precise) /Black=0.07 (flawless)} 1/2-1/2

[Event "Israeli Team U18-ch 2022"]
[Site "Be'er Ya'akov"]
[Date "2022.08.16"]
[Round "7.12"]
[White "Ostrovsky Berman, Noam"]
[Black "Levi, Or"]
[Result "1/2-1/2"]
[ECO "B92"]
[WhiteElo "1778"]
[BlackElo "1784"]
[Annotator "NA RC"]
[PlyCount "89"]
[EventDate "2022.08.14"]
[EventCountry "ISR"]
[SourceTitle "playchess.com"]
[Source "ChessBase"]
[SourceQuality "1"]
[TimeControl "3000+10"]

1. e4 {[%emt 0:00:01]} c5 {[%emt 0:00:10]} 2. Nf3 {[%emt 0:00:06]} d6 {[%emt 0:00:12]} 3. d4 {[%emt 0:00:02]} cxd4 {[%emt 0:00:07]} 4. Nxd4 {[%emt 0:00:04]} Nf6 {[%emt 0:00:14]} 5. Nc3 {[%emt 0:00:06]} a6 {[%emt 0:00:05]} 6. Be2 {[%emt 0:00:04]} e5 {[%emt 0:00:12]} 7. Nb3 {[%emt 0:00:05]} Be7 {[%emt 0:00:31]} 8. O-O {[%emt 0:00:08]} O-O {[%emt 0:00:44]} 9. Qd3 {[%emt 0:00:48]} Nc6 {[%emt 0:01:37]} 10. Nd5 {[%emt 0:02:23]} Nxd5 {[%emt 0:02:38]} 11. exd5 {[%emt 0:00:24]} Nb8 {[%emt 0:04:36]} 12. c4 {[%emt 0:04:10]} Nd7 {[%emt 0:00:47]} 13. f4 {[%emt 0:03:05]} Bf6 {[%emt 0:01:28]} 14. Qg3 {[%emt 0:06:10]} a5 {[%emt 0:01:53]} 15. Be3 {[%emt 0:03:54]} a4 {[%emt 0:02:25]} 16. Nd2 {[%emt 0:00:05]} exf4 {[%emt 0:02:56]} 17. Bxf4 {[%emt 0:01:07]} Be5 {[%emt 0:01:30]} 18. Ne4 {[%emt 0:05:20]} Bxf4 {[%emt 0:10:20]} 19. Qxf4 {[%emt 0:03:01]} Qb6+ {[%emt 0:02:02]} 20. Rf2 {[%emt 0:03:00]} Ne5 {[%emt 0:03:38]} 21. Raf1 {[%emt 0:03:04]} Bd7 {[%emt 0:02:38]} 22. c5 {[%emt 0:02:57]} Qxb2 {[%emt 0:00:02]} 23. Nxd6 {[%emt 0:00:57]} Ng6 {[%emt 0:02:31]} 24. Qc4 {[%emt 0:06:46]} Ne5 {[%emt 0:01:56]} 25. Qe4 {[%emt 0:00:49]} f5 {[%emt 0:00:01]} 26. Qb1 {[%emt 0:03:57]} Qd4 {[%emt 0:01:49]} 27. Qc2 {[%emt 0:01:18]} Qxd5 {[%emt 0:00:52]} 28. Nxf5 {[%emt 0:00:03]} Bxf5 {[%emt 0:00:40]} 29. Rxf5 {[%emt 0:00:01]} Rxf5 {[%emt 0:00:43]} 30. Rxf5 {[%emt 0:00:30]} Qd4+ {[%emt 0:00:29]} 31. Kh1 {[%emt 0:00:24]} h6 {[%emt 0:01:08]} 32. h3 {[%emt 0:00:08]} Rc8 {[%emt 0:00:18]} 33. Qb1 {[%emt 0:00:32]} Rc7 {[%emt 0:01:13]} 34. Rf1 {[%emt 0:00:09]} Qxc5 {[%emt 0:00:11]} 35. Qb2 {[%emt 0:00:09]} Re7 {[%emt 0:01:39]} 36. Qb5 {[%emt 0:00:07]} Qxb5 {[%emt 0:01:15]} 37. Bxb5 {[%emt 0:00:00]} a3 {[%emt 0:00:05]} 38. Rb1 {[%emt 0:00:04]} Nc6 {[%emt 0:00:40]} 39. Rb3 {[%emt 0:00:42]} Nd4 {[%emt 0:00:13]} 40. Bc4+ {[%emt 0:00:00]} Kh7 {[%emt 0:00:00]} 41. Rxa3 {[%emt 0:00:00]} Re1+ {[%emt 0:00:09]} 42. Kh2 {[%emt 0:00:00]} Ra1 {[%emt 0:00:02]} 43. Ra7 {[%emt 0:00:00]} b5 {[%emt 0:00:12]} 44. Bd3+ {[%emt 0:00:00]} Kg8 {[%emt 0:00:00]} 45. Rd7 {[%emt 0:00:11]} 1/2-1/2

[Event "Israeli Team U18-ch 2022"]
[Site "Be'er Ya'akov"]
[Date "2022.08.16"]
[Round "7.13"]
[White "Gov, Guy"]
[Black "Michaeli, Omri"]
[Result "1-0"]
[ECO "C56"]
[WhiteElo "2174"]
[BlackElo "1896"]
[Annotator "TA"]
[PlyCount "45"]
[EventDate "2022.08.14"]
[EventCountry "ISR"]
[SourceTitle "playchess.com"]
[Source "ChessBase"]
[SourceQuality "1"]
[TimeControl "3000+10"]

{[%evp 13,45,39,20,29,53,49,326,357,354,365,344,345,337,320,517,543,525,519,532,531,653,650,774,766,902,774,888,868,858,841,1189,1187,1945,1804]} 1. e4 {[%emt 0:00:02][%cal Be2e4,Be4e5,Be5f6,Bf6g7][%mdl 32]} e5 {[%emt 0:00:02]} 2. Nf3 {[%emt 0:00:09]} Nc6 {[%emt 0:00:02]} 3. d4 {[%emt 0:00:14]} exd4 {[%emt 0:00:04]} 4. Bc4 {[%emt 0:00:06]} Nf6 {[%emt 0:00:21]} 5. O-O {[%emt 0:00:10]} Bc5 {[%emt 0:00:10]} 6. e5 {[%emt 0:00:01]} d5 {[%emt 0:00:12]} 7. exf6 {[%emt 0:00:10]} dxc4 {[%emt 0:00:10]} 8. fxg7 {[%emt 0:00:01] C56: Two Knights: 4 d4 exd4 5 0-0 Nxe4.} Rg8 {[%emt 0:00:53]} 9. Bg5 {[%emt 0:00:46]} Qd5 {[%emt 0:03:12][%mdl 8192] Nowadays more popular than 9...Be7.} (9... f6 $14 10. Bh6 Qe7) 10. Nc3 $18 {[%emt 0:00:15] White has a decisive advantage.} Qf5 {[%emt 0:01:18]} 11. Re1+ {[%emt 0:01:15]} Be6 {[%emt 0:00:10] [#]} 12. Ne4 {[%emt 0:00:11]} ({Inferior is} 12. Nb5 Bb6 13. a4 (13. Nbxd4 Nxd4 14. Nxd4 Bxd4 $17) 13... Rxg7 $17) 12... Rxg7 {[%emt 0:01:09] [#]} 13. Nh4 $1 {[%emt 0:00:24] Pair of Knights!} Qxg5 {[%emt 0:03:24]} (13... Rxg5 {was called for.} 14. Nxf5 Rxf5) 14. Nxg5 {[%emt 0:00:31][%mdl 64] Discovered Attack. White is clearly winning.} Rxg5 {[%emt 0:00:04]} 15. f4 {[%emt 0:08:28][%cal Bf2f4,Bf4f5][%mdl 32]} d3+ {[%emt 0:03:02]} 16. Kh1 {[%emt 0:00:08]} dxc2 {[%emt 0:01:45]} 17. Qxc2 {[%emt 0:01:06]} Rh5 {[%emt 0:02:01] [#]} 18. f5 $146 {[%emt 0:04:39]} ({Predecessor:} 18. Nf5 O-O-O 19. Rxe6 fxe6 20. g4 Rh3 21. Qxc4 Rd2 22. Qxc5 Rhxh2+ 23. Kg1 exf5 24. Re1 {0-1 (46) Howell,S (2060)-Teran Abreu,L (2121) Port of Spain 2009}) 18... Nd4 {[%emt 0:02:22]} 19. Qe4 {[%emt 0:01:58]} Rxh4 {[%emt 0:04:00]} 20. Qxh4 {[%emt 0:00:28]} Nxf5 {[%emt 0:00:57]} 21. Qxc4 {[%emt 0:01:05]} b6 {[%emt 0:03:09]} 22. b4 {[%emt 0:01:01]} Ne7 {[%emt 0:01:49]} 23. Rxe6 {[%emt 0:00:11] Black did not feel at home in the position after the opening.  Weighted Error Value: White=0.02 (flawless) /Black=1.12} 1-0

[Event "Israeli Team U18-ch 2022"]
[Site "Be'er Ya'akov"]
[Date "2022.08.16"]
[Round "7.14"]
[White "Shocron, Alon"]
[Black "Tsirilman, Guy"]
[Result "0-1"]
[ECO "A24"]
[WhiteElo "1895"]
[BlackElo "2108"]
[Annotator "TA"]
[PlyCount "70"]
[EventDate "2022.08.14"]
[EventCountry "ISR"]
[SourceTitle "playchess.com"]
[Source "ChessBase"]
[SourceQuality "1"]
[TimeControl "3000+10"]

{[%evp 14,70,26,16,45,27,29,-15,0,0,-17,-15,0,-39,8,-41,-5,-45,-41,-46,-53,-103,-56,-97,-81,-135,-139,-136,-131,-222,-213,-217,-198,-223,-215,-229,-228,-235,-248,-241,-232,-212,-166,-237,-260,-316,-320,-517,-559,-543,-530,-593,-517,-510,-510,-508,-495,-5306,-2394]} 1. c4 {[%emt 0:00:02]} Nf6 {[%emt 0:00:06]} 2. Nc3 {[%emt 0:00:04]} g6 {[%emt 0:00:04]} 3. g3 {[%emt 0:00:02]} Bg7 {[%emt 0:00:04]} 4. Bg2 {[%emt 0:00:03]} d6 {[%emt 0:00:03]} 5. e3 {[%emt 0:00:22]} O-O {[%emt 0:00:32]} 6. Nge2 {[%emt 0:00:40]} e5 {[%emt 0:00:08]} 7. O-O {[%emt 0:00:11]} Nbd7 {[%emt 0:00:51] 7...Nc6 is the modern continuation.} 8. d3 {[%emt 0:03:02]} a5 {[%emt 0:04:20] A24: English Opening vs King's Indian: Lines without ...Nc6.} 9. b3 {[%emt 0:00:49]} Re8 {[%emt 0:01:11]} 10. a3 {[%emt 0:05:28] [#]} Nf8 $146 {[%emt 0:04:29] The position is equal.} ({Predecessor:} 10... Nc5 11. e4 c6 12. h3 Nfd7 13. Be3 f5 14. Qc2 Qf6 15. d4 Nxe4 16. Nxe4 fxe4 17. Qxe4 {1-0 (36) Nassr,L (1982)-Miladi,A (1777) Hammamet 2019}) 11. Bb2 {[%emt 0:00:07]} h5 {[%emt 0:00:43]} 12. Qd2 {[%emt 0:01:52]} h4 {[%emt 0:01:35]} 13. b4 {[%emt 0:00:13]} N8h7 {[%emt 0:03:28]} (13... h3 $15 14. Bh1 c6) 14. Nd5 {[%emt 0:08:37]} (14. gxh4 $11 Nh5 15. Ng3) 14... hxg3 {[%emt 0:08:20]} 15. fxg3 {[%emt 0:02:57]} c6 {[%emt 0:00:47]} 16. Nxf6+ {[%emt 0:00:36]} Nxf6 {[%emt 0:00:10]} 17. d4 {[%emt 0:02:13] White is now going downhill.} (17. b5 $15) 17... Qe7 {[%emt 0:03:11]} ({Black should try} 17... Bh6 $17 {Hoping for ...Ng4.} 18. Rae1 Ng4) 18. d5 {[%emt 0:02:37]} cxd5 {[%emt 0:01:54]} 19. Bxd5 {[%emt 0:01:37]} (19. cxd5 $142 axb4 20. Qxb4) 19... Nxd5 $17 {[%emt 0:00:31]} 20. cxd5 {[%emt 0:00:02]} Bh6 {[%emt 0:00:12]} 21. Qd3 {[%emt 0:00:31]} (21. bxa5 $17 Bh3 22. Rfe1) 21... Bh3 $19 {[%emt 0:02:06]} 22. Rfe1 {[%emt 0:04:33]} Qc7 {[%emt 0:02:32]} 23. Nc3 {[%emt 0:01:13] [#]} axb4 $1 {[%emt 0:01:18]} 24. axb4 {[%emt 0:00:04]} Rxa1 {[%emt 0:00:08]} 25. Bxa1 {[%emt 0:01:23]} Ra8 {[%emt 0:00:43]} 26. Bb2 {[%emt 0:02:50]} Qb6 {[%emt 0:00:21]} 27. b5 {[%emt 0:01:42]} Kg7 {[%emt 0:04:05]} 28. Nd1 {[%emt 0:01:35]} (28. Kf2 {was worth a try.}) 28... Bf5 {[%emt 0:01:25]} 29. Qb3 {[%emt 0:00:03]} Ra5 {[%emt 0:00:40]} 30. Nc3 {[%emt 0:01:52]} (30. Bc3 Rxb5 31. Qc4) 30... Bxe3+ {[%emt 0:00:25] Black is clearly winning.} 31. Kg2 {[%emt 0:00:03]} Bd4 {[%emt 0:00:35] This bishop pair is nice.} 32. Re2 {[%emt 0:00:58]} Bxc3 {[%emt 0:01:36]} 33. Qxc3 {[%emt 0:00:01][%cal Oe2e5]} Rxb5 {[%emt 0:00:13]} 34. Rxe5 {[%emt 0:00:29] [#] Threatening mate with Re6+.} Rb3 {[%emt 0:02:06]} ({And not} 34... dxe5 35. Qxe5+ Kf8 36. Ba3+ Rb4 37. Qf4 $11) 35. Qxb3 {[%emt 0:00:27]} (35. Rxf5+ $142 Rxc3 36. Bxc3+ Kf8 37. Rf4) 35... Qxb3 {[%emt 0:00:05] Weighted Error Value: White=0.54/Black=0.13 (very precise)} 0-1

[Event "Israeli Team U18-ch 2022"]
[Site "Be'er Ya'akov"]
[Date "2022.08.16"]
[Round "7.15"]
[White "Orian, Noga"]
[Black "Kabakov, Iddo"]
[Result "1-0"]
[ECO "D85"]
[WhiteElo "1914"]
[BlackElo "1592"]
[Annotator "NA RC"]
[PlyCount "53"]
[EventDate "2022.08.14"]
[EventCountry "ISR"]
[SourceTitle "playchess.com"]
[Source "ChessBase"]
[SourceQuality "1"]
[TimeControl "3000+10"]

1. d4 {[%emt 0:00:02]} Nf6 {[%emt 0:00:05]} 2. c4 {[%emt 0:00:05]} g6 {[%emt 0:00:07]} 3. Nc3 {[%emt 0:00:04]} d5 {[%emt 0:00:05]} 4. cxd5 {[%emt 0:00:05]} Nxd5 {[%emt 0:00:05]} 5. e4 {[%emt 0:00:03]} Nxc3 {[%emt 0:00:08]} 6. bxc3 {[%emt 0:00:05]} Bg7 {[%emt 0:00:04]} 7. Be3 {[%emt 0:00:10]} c5 {[%emt 0:00:08]} 8. Rc1 {[%emt 0:00:09]} O-O {[%emt 0:01:56]} 9. Qd2 {[%emt 0:00:25]} Nc6 {[%emt 0:06:13]} 10. d5 {[%emt 0:00:11]} Ne5 {[%emt 0:04:51]} 11. h3 {[%emt 0:00:05]} b6 {[%emt 0:02:51]} 12. f4 {[%emt 0:06:05]} Nd7 {[%emt 0:00:18]} 13. Nf3 {[%emt 0:01:44]} Nf6 {[%emt 0:04:17]} 14. Qc2 {[%emt 0:03:28]} Qc7 {[%emt 0:02:22]} 15. g4 {[%emt 0:04:44]} Rd8 {[%emt 0:02:54]} 16. c4 {[%emt 0:00:53]} Ne8 {[%emt 0:04:54]} 17. Bd3 {[%emt 0:02:16]} Bb7 {[%emt 0:01:58]} 18. Kf2 {[%emt 0:01:48]} Nd6 {[%emt 0:05:47]} 19. e5 {[%emt 0:02:55]} Ne8 {[%emt 0:00:12]} 20. h4 {[%emt 0:00:52]} Qc8 {[%emt 0:00:27]} 21. h5 {[%emt 0:05:51]} Qxg4 {[%emt 0:01:55]} 22. Rcg1 {[%emt 0:00:08]} Qd7 {[%emt 0:00:16]} 23. hxg6 {[%emt 0:00:10]} fxg6 {[%emt 0:00:19]} 24. Bxg6 {[%emt 0:00:36]} hxg6 {[%emt 0:00:08]} 25. Qxg6 {[%emt 0:00:09]} Rac8 {[%emt 0:00:20]} 26. e6 {[%emt 0:00:34]} Qa4 {[%emt 0:00:24]} 27. Qf7# {[%emt 0:00:04]} 1-0

[Event "Israeli Team U18-ch 2022"]
[Site "Be'er Ya'akov"]
[Date "2022.08.16"]
[Round "7.16"]
[White "Kabakov, Iddo"]
[Black "Zuev, Ilya"]
[Result "*"]
[ECO "C01"]
[WhiteElo "1592"]
[BlackElo "1789"]
[Annotator "NA RC"]
[PlyCount "20"]
[EventDate "2022.08.14"]
[EventCountry "ISR"]
[SourceTitle "playchess.com"]
[Source "ChessBase"]
[SourceQuality "1"]
[TimeControl "3000+10"]

1. e4 {[%emt 0:00:01]} e6 {[%emt 0:00:05]} 2. d4 {[%emt 0:00:03]} d5 {[%emt 0:00:03]} 3. exd5 {[%emt 0:00:03]} exd5 {[%emt 0:00:09]} 4. Nf3 {[%emt 0:00:08]} Nf6 {[%emt 0:00:08]} 5. Bd3 {[%emt 0:00:12]} Bd6 {[%emt 0:00:06]} 6. O-O {[%emt 0:00:05]} O-O {[%emt 0:00:05]} 7. Re1 {[%emt 0:00:03]} Re8 {[%emt 0:00:29]} 8. Rxe8+ {[%emt 0:00:09]} Qxe8 {[%emt 0:00:06]} 9. Bg5 {[%emt 0:00:42]} Ne4 {[%emt 0:00:18]} 10. Qe2 {[%emt 0:02:39]} f5 {[%emt 0:04:37]} *